[Event "Polofinale MCR juniorek 2023"]
[Site "Czech Republic"]
[Date "2023.11.13"]
[Round "3.6"]
[White "Kavanova, Anezka"]
[Black "Jakubse, Tamae Severina"]
[Result "0-1"]
[TimeControl "90 min per 40 moves + 15 min + 30 sec / move from move 1"]
[WhiteFideId "23745517"]
[BlackFideId "23745975"]
[WhiteElo "1434"]
[BlackElo "1679"]

1. e4 {[%clk 01:30:58]} {[%emt 00:00:01]} e5 {[%clk 01:30:59]} {[%emt
00:00:01]} 2. Nf3 {[%clk 01:31:07]} {[%emt 00:00:21]} Nc6 {[%clk 01:31:24]}
{[%emt 00:00:05]} 3. Bb5 {[%clk 01:31:32]} {[%emt 00:00:05]} f5 {[%clk
01:31:49]} {[%emt 00:00:05]} 4. Nc3 {[%clk 01:31:56]} {[%emt 00:00:06]} fxe4
{[%clk 01:32:10]} {[%emt 00:00:09]} 5. Nxe4 {[%clk 01:32:19]} {[%emt 00:00:08]}
Nf6 {[%clk 01:32:28]} {[%emt 00:00:13]} 6. Nxf6+ {[%clk 01:32:43]} {[%emt
00:00:04]} Qxf6 {[%clk 01:32:49]} {[%emt 00:00:10]} 7. Qe2 {[%clk 01:32:48]}
{[%emt 00:00:24]} Be7 {[%clk 01:33:04]} {[%emt 00:00:16]} 8. Bxc6 {[%clk
01:32:25]} {[%emt 00:00:54]} bxc6 {[%clk 01:32:51]} {[%emt 00:00:43]} 9. Nxe5
{[%clk 01:31:52]} {[%emt 00:01:02]} O-O {[%clk 01:29:58]} {[%emt 00:03:23]} 10.
O-O {[%clk 01:27:18]} {[%emt 00:05:04]} Bd6 {[%clk 01:19:59]} {[%emt 00:10:29]}
11. d4 {[%clk 01:22:49]} {[%emt 00:04:59]} c5 {[%clk 01:15:21]} {[%emt
00:05:08]} 12. f4 {[%clk 01:13:32]} {[%emt 00:09:46]} cxd4 {[%clk 01:09:01]}
{[%emt 00:06:50]} 13. Qc4+ {[%clk 01:12:33]} {[%emt 00:01:29]} Kh8 {[%clk
01:08:00]} {[%emt 00:01:32]} 14. Qxd4 {[%clk 01:11:57]} {[%emt 00:01:05]} Qe7
{[%clk 01:05:29]} {[%emt 00:03:01]} 15. Qe4 {[%clk 01:09:25]} {[%emt 00:03:03]}
Ba6 {[%clk 01:02:06]} {[%emt 00:03:52]} 16. Rf3 {[%clk 01:02:54]} {[%emt
00:07:01]} Bxe5 {[%clk 00:50:04]} {[%emt 00:12:32]} 17. fxe5 {[%clk 01:03:17]}
{[%emt 00:00:07]} Rxf3 {[%clk 00:45:56]} {[%emt 00:04:38]} 18. gxf3 {[%clk
01:00:25]} {[%emt 00:03:22]} Rb8 {[%clk 00:43:17]} {[%emt 00:03:09]} 19. Be3
{[%clk 00:59:03]} {[%emt 00:01:52]} Bb7 {[%clk 00:41:51]} {[%emt 00:01:56]} 20.
Qg4 {[%clk 00:54:32]} {[%emt 00:05:01]} Rf8 {[%clk 00:37:20]} {[%emt 00:05:01]}
21. f4 {[%clk 00:53:31]} {[%emt 00:01:31]} Qb4 {[%clk 00:36:23]} {[%emt
00:01:26]} 22. Rd1 {[%clk 00:43:49]} {[%emt 00:10:13]} Qe4 {[%clk 00:32:36]}
{[%emt 00:04:16]} 23. Qe2 {[%clk 00:36:42]} {[%emt 00:07:38]} Rxf4 {[%clk
00:30:11]} {[%emt 00:02:55]} 0-1

[Event "Polofinale MCR juniorek 2023"]
[Site "Czech Republic"]
[Date "2023.11.13"]
[Round "3.7"]
[White "Stavova, Helena"]
[Black "Sikorova, Jana"]
[Result "1-0"]
[TimeControl "90 min per 40 moves + 15 min + 30 sec / move from move 1"]
[WhiteFideId "23714751"]
[BlackFideId "392472"]
[WhiteElo "1425"]
[BlackElo "1662"]

1. e4 {[%clk 01:30:55]} {[%emt 00:00:03]} c5 {[%clk 01:30:39]} {[%emt
00:00:22]} 2. Nc3 {[%clk 01:31:11]} {[%emt 00:00:14]} e6 {[%clk 01:30:43]}
{[%emt 00:00:26]} 3. g3 {[%clk 01:31:16]} {[%emt 00:00:25]} a6 {[%clk
01:30:36]} {[%emt 00:00:36]} 4. Bg2 {[%clk 01:30:59]} {[%emt 00:00:47]} Qc7
{[%clk 01:30:27]} {[%emt 00:00:39]} 5. d3 {[%clk 01:29:19]} {[%emt 00:02:10]}
b5 {[%clk 01:29:49]} {[%emt 00:01:08]} 6. Nge2 {[%clk 01:27:33]} {[%emt
00:02:15]} Bb7 {[%clk 01:29:09]} {[%emt 00:01:10]} 7. O-O {[%clk 01:26:57]}
{[%emt 00:01:07]} Nf6 {[%clk 01:28:37]} {[%emt 00:01:02]} 8. h3 {[%clk
01:23:58]} {[%emt 00:03:29]} Be7 {[%clk 01:28:08]} {[%emt 00:00:59]} 9. f4
{[%clk 01:21:37]} {[%emt 00:02:51]} d6 {[%clk 01:25:57]} {[%emt 00:02:40]} 10.
Be3 {[%clk 01:19:09]} {[%emt 00:02:58]} Nbd7 {[%clk 01:24:55]} {[%emt
00:01:32]} 11. g4 {[%clk 01:12:43]} {[%emt 00:06:57]} Nb6 {[%clk 01:23:17]}
{[%emt 00:02:08]} 12. Ng3 {[%clk 01:10:19]} {[%emt 00:02:55]} Rc8 {[%clk
01:12:35]} {[%emt 00:11:11]} 13. f5 {[%clk 01:03:18]} {[%emt 00:07:31]} e5
{[%clk 01:02:12]} {[%emt 00:10:53]} 14. g5 {[%clk 01:00:10]} {[%emt 00:03:38]}
Nfd7 {[%clk 01:00:17]} {[%emt 00:02:25]} 15. Qg4 {[%clk 00:54:09]} {[%emt
00:06:32]} b4 {[%clk 00:54:49]} {[%emt 00:05:58]} 16. Nce2 {[%clk 00:45:19]}
{[%emt 00:09:20]} d5 {[%clk 00:51:26]} {[%emt 00:03:52]} 17. Nh5 {[%clk
00:27:07]} {[%emt 00:18:42]} Rg8 {[%clk 00:46:07]} {[%emt 00:05:49]} 18. g6
{[%clk 00:24:12]} {[%emt 00:03:25]} hxg6 {[%clk 00:39:22]} {[%emt 00:07:15]} 19.
fxg6 {[%clk 00:23:45]} {[%emt 00:00:57]} f6 {[%clk 00:37:31]} {[%emt 00:02:21]}
20. Qe6 {[%clk 00:23:02]} {[%emt 00:01:13]} Rf8 {[%clk 00:33:28]} {[%emt
00:04:34]} 21. Nxg7+ {[%clk 00:22:51]} {[%emt 00:00:41]} Kd8 {[%clk 00:33:47]}
{[%emt 00:00:10]} 22. Qf5 {[%clk 00:20:29]} {[%emt 00:02:52]} Qd6 {[%clk
00:29:16]} {[%emt 00:05:01]} 23. Ne6+ {[%clk 00:20:17]} {[%emt 00:00:42]} Ke8
{[%clk 00:29:35]} {[%emt 00:00:11]} 24. g7 {[%clk 00:20:03]} {[%emt 00:00:44]}
1-0

[Event "Polofinale MCR juniorek 2023"]
[Site "Czech Republic"]
[Date "2023.11.13"]
[Round "3.9"]
[White "Bartova, Hana"]
[Black "Nova, Anezka"]
[Result "1-0"]
[TimeControl "90 min per 40 moves + 15 min + 30 sec / move from move 1"]
[WhiteFideId "23732695"]
[BlackFideId "23727144"]
[WhiteElo "1270"]
[BlackElo "1578"]

1. e4 {[%clk 01:30:47]} {[%emt 00:00:12]} e6 {[%clk 01:30:55]} {[%emt
00:00:05]} 2. d4 {[%clk 01:31:13]} {[%emt 00:00:04]} d5 {[%clk 01:31:22]}
{[%emt 00:00:03]} 3. Nc3 {[%clk 01:31:26]} {[%emt 00:00:17]} Bb4 {[%clk
01:31:47]} {[%emt 00:00:05]} 4. e5 {[%clk 01:31:44]} {[%emt 00:00:12]} c5
{[%clk 01:32:12]} {[%emt 00:00:04]} 5. a3 {[%clk 01:32:07]} {[%emt 00:00:08]}
Bxc3+ {[%clk 01:32:38]} {[%emt 00:00:04]} 6. bxc3 {[%clk 01:32:30]} {[%emt
00:00:07]} Ne7 {[%clk 01:33:02]} {[%emt 00:00:07]} 7. Nf3 {[%clk 01:30:39]}
{[%emt 00:02:21]} Nbc6 {[%clk 01:30:57]} {[%emt 00:02:34]} 8. Be2 {[%clk
01:28:09]} {[%emt 00:03:00]} O-O {[%clk 01:29:05]} {[%emt 00:02:22]} 9. O-O
{[%clk 01:27:22]} {[%emt 00:01:16]} Bd7 {[%clk 01:23:53]} {[%emt 00:05:43]} 10.
Bg5 {[%clk 01:17:21]} {[%emt 00:10:30]} h6 {[%clk 01:21:18]} {[%emt 00:03:06]}
11. Be3 {[%clk 01:11:46]} {[%emt 00:06:04]} Nf5 {[%clk 01:15:42]} {[%emt
00:06:07]} 12. Qd2 {[%clk 01:10:57]} {[%emt 00:01:18]} c4 {[%clk 01:11:00]}
{[%emt 00:05:14]} 13. g4 {[%clk 01:05:08]} {[%emt 00:06:19]} Nh4 {[%clk
01:00:34]} {[%emt 00:10:56]} 14. g5 {[%clk 01:03:50]} {[%emt 00:01:48]} Nxf3+
{[%clk 00:57:56]} {[%emt 00:03:07]} 15. Bxf3 {[%clk 01:04:11]} {[%emt
00:00:09]} hxg5 {[%clk 00:55:54]} {[%emt 00:02:33]} 16. Bxg5 {[%clk 01:04:26]}
{[%emt 00:00:15]} Ne7 {[%clk 00:49:07]} {[%emt 00:07:17]} 17. Kh1 {[%clk
01:02:29]} {[%emt 00:02:27]} Qe8 {[%clk 00:44:23]} {[%emt 00:05:15]} 18. Rg1
{[%clk 00:59:48]} {[%emt 00:03:10]} Nf5 {[%clk 00:39:43]} {[%emt 00:05:10]} 19.
Bf6 {[%clk 00:58:33]} {[%emt 00:01:43]} Kh7 {[%clk 00:36:02]} {[%emt 00:04:13]}
20. Rg5 {[%clk 00:50:00]} {[%emt 00:09:03]} g6 {[%clk 00:24:43]} {[%emt
00:11:49]} 21. Rxf5 {[%clk 00:48:54]} {[%emt 00:01:36]} exf5 {[%clk 00:20:21]}
{[%emt 00:04:52]} 22. Qf4 {[%clk 00:49:16]} {[%emt 00:00:08]} 1-0

[Event "Polofinale MCR juniorek 2023"]
[Site "Czech Republic"]
[Date "2023.11.13"]
[Round "3.10"]
[White "Taborska, Aneta"]
[Black "Petirova, Iva"]
[Result "0-1"]
[TimeControl "90 min per 40 moves + 15 min + 30 sec / move from move 1"]
[WhiteFideId "23733039"]
[BlackFideId "23741961"]
[WhiteElo "1165"]
[BlackElo "1636"]

1. d4 {[%clk 01:30:42]} {[%emt 00:00:18]} Nf6 {[%clk 01:30:46]} {[%emt
00:00:14]} 2. Nf3 {[%clk 01:31:02]} {[%emt 00:00:10]} g6 {[%clk 01:30:47]}
{[%emt 00:00:29]} 3. c4 {[%clk 01:30:52]} {[%emt 00:00:39]} d6 {[%clk
01:30:37]} {[%emt 00:00:40]} 4. Nc3 {[%clk 01:30:16]} {[%emt 00:01:06]} Bg7
{[%clk 01:30:40]} {[%emt 00:00:28]} 5. e4 {[%clk 01:29:33]} {[%emt 00:01:12]}
Nbd7 {[%clk 01:30:25]} {[%emt 00:00:45]} 6. Bd3 {[%clk 01:29:32]} {[%emt
00:00:31]} O-O {[%clk 01:30:09]} {[%emt 00:00:46]} 7. O-O {[%clk 01:29:52]}
{[%emt 00:00:09]} e5 {[%clk 01:29:32]} {[%emt 00:01:08]} 8. d5 {[%clk
01:29:47]} {[%emt 00:00:35]} a5 {[%clk 01:29:40]} {[%emt 00:00:21]} 9. Be3
{[%clk 01:30:09]} {[%emt 00:00:08]} Ng4 {[%clk 01:25:12]} {[%emt 00:04:59]} 10.
Bg5 {[%clk 01:27:58]} {[%emt 00:02:41]} f6 {[%clk 01:21:53]} {[%emt 00:03:49]}
11. Bd2 {[%clk 01:27:28]} {[%emt 00:00:59]} Nc5 {[%clk 01:21:46]} {[%emt
00:00:37]} 12. Qc2 {[%clk 01:27:16]} {[%emt 00:00:40]} f5 {[%clk 01:20:43]}
{[%emt 00:01:35]} 13. exf5 {[%clk 01:26:41]} {[%emt 00:01:06]} gxf5 {[%clk
01:21:05]} {[%emt 00:00:08]} 14. h3 {[%clk 01:26:59]} {[%emt 00:00:12]} e4
{[%clk 01:19:39]} {[%emt 00:01:55]} 15. hxg4 {[%clk 01:25:47]} {[%emt
00:01:42]} exd3 {[%clk 01:20:01]} {[%emt 00:00:08]} 16. Qd1 {[%clk 01:25:55]}
{[%emt 00:00:22]} fxg4 {[%clk 01:18:16]} {[%emt 00:02:16]} 17. Nd4 {[%clk
01:25:54]} {[%emt 00:00:30]} Bxd4 {[%clk 01:18:21]} {[%emt 00:00:24]} 18. Bh6
{[%clk 01:26:17]} {[%emt 00:00:08]} Bg7 {[%clk 01:18:27]} {[%emt 00:00:25]} 19.
Qd2 {[%clk 01:26:12]} {[%emt 00:00:34]} Qf6 {[%clk 01:18:28]} {[%emt 00:00:29]}
20. Bg5 {[%clk 01:26:20]} {[%emt 00:00:23]} Qg6 {[%clk 01:17:40]} {[%emt
00:01:17]} 21. Rfe1 {[%clk 01:26:37]} {[%emt 00:00:13]} Be5 {[%clk 01:17:23]}
{[%emt 00:00:47]} 22. Nb5 {[%clk 01:26:35]} {[%emt 00:00:32]} Ne4 {[%clk
01:15:57]} {[%emt 00:01:57]} 23. Bh6 {[%clk 01:25:42]} {[%emt 00:01:22]} Nxd2
{[%clk 01:16:06]} {[%emt 00:00:20]} 0-1

[Event "Polofinale MCR juniorek 2023"]
[Site "Czech Republic"]
[Date "2023.11.13"]
[Round "3.11"]
[White "Reznickova, Sibyla"]
[Black "Vavrinkova, Marie"]
[Result "1-0"]
[TimeControl "90 min per 40 moves + 15 min + 30 sec / move from move 1"]
[WhiteFideId "398721"]
[BlackFideId "392154"]
[WhiteElo "1413"]
[BlackElo "1492"]

1. d4 {[%clk 01:30:51]} {[%emt 00:00:08]} Nf6 {[%clk 01:30:34]} {[%emt
00:00:26]} 2. Nf3 {[%clk 01:30:10]} {[%emt 00:01:11]} g6 {[%clk 01:30:09]}
{[%emt 00:00:55]} 3. Bg5 {[%clk 01:29:13]} {[%emt 00:01:26]} Bg7 {[%clk
01:29:33]} {[%emt 00:01:06]} 4. Nc3 {[%clk 01:29:29]} {[%emt 00:00:15]} d6
{[%clk 01:29:01]} {[%emt 00:01:03]} 5. e4 {[%clk 01:28:40]} {[%emt 00:01:18]}
O-O {[%clk 01:27:58]} {[%emt 00:01:33]} 6. Bc4 {[%clk 01:27:16]} {[%emt
00:01:55]} Nxe4 {[%clk 01:22:31]} {[%emt 00:05:56]} 7. Bxf7+ {[%clk 01:17:21]}
{[%emt 00:10:26]} Rxf7 {[%clk 01:20:58]} {[%emt 00:02:03]} 8. Nxe4 {[%clk
01:17:32]} {[%emt 00:00:19]} Bg4 {[%clk 01:19:05]} {[%emt 00:02:23]} 9. h4
{[%clk 01:06:20]} {[%emt 00:11:42]} Qf8 {[%clk 01:14:53]} {[%emt 00:04:42]} 10.
c3 {[%clk 00:57:01]} {[%emt 00:09:48]} h6 {[%clk 01:10:02]} {[%emt 00:05:21]}
11. Be3 {[%clk 00:56:03]} {[%emt 00:01:28]} Rxf3 {[%clk 01:01:36]} {[%emt
00:08:57]} 12. gxf3 {[%clk 00:49:15]} {[%emt 00:07:17]} Qxf3 {[%clk 00:56:43]}
{[%emt 00:05:23]} 13. Qb3+ {[%clk 00:46:44]} {[%emt 00:03:02]} Kh7 {[%clk
00:56:23]} {[%emt 00:00:50]} 14. Ng3 {[%clk 00:46:23]} {[%emt 00:00:50]} Nd7
{[%clk 00:53:36]} {[%emt 00:03:18]} 15. Kd2 {[%emt 00:05:38]} e5 {[%emt
00:05:48]} 16. Rag1 {[%clk 00:32:09]} {[%emt 00:09:34]} Nf6 {[%clk 00:40:07]}
{[%emt 00:08:43]} 17. Qc2 {[%clk 00:29:38]} {[%emt 00:02:59]} Re8 {[%clk
00:35:51]} {[%emt 00:04:47]} 18. Re1 {[%clk 00:20:38]} {[%emt 00:09:30]} Rf8
{[%clk 00:24:47]} {[%emt 00:11:35]} 19. Rhg1 {[%clk 00:16:58]} {[%emt
00:04:10]} e4 {[%clk 00:18:19]} {[%emt 00:06:58]} 20. Nf1 {[%clk 00:12:35]}
{[%emt 00:04:52]} Qf5 {[%clk 00:15:20]} {[%emt 00:03:29]} 21. Nh2 {[%clk
00:11:00]} {[%emt 00:02:05]} Bh5 {[%clk 00:15:11]} {[%emt 00:00:40]} 22. Ref1
{[%clk 00:09:26]} {[%emt 00:02:04]} Qh3 {[%clk 00:14:01]} {[%emt 00:01:39]} 23.
Rh1 {[%clk 00:08:39]} {[%emt 00:01:17]} Nd5 {[%clk 00:13:48]} {[%emt 00:00:44]}
24. Qxe4 {[%clk 00:07:06]} {[%emt 00:02:02]} Nxe3 {[%clk 00:12:53]} {[%emt
00:01:24]} 25. fxe3 {[%clk 00:05:46]} {[%emt 00:01:50]} Qg3 {[%clk 00:11:50]}
{[%emt 00:01:34]} 26. Rxf8 {[%clk 00:05:17]} {[%emt 00:00:59]} Bxf8 {[%clk
00:12:17]} {[%emt 00:00:03]} 27. Nf1 {[%clk 00:04:14]} {[%emt 00:01:33]} Bf3
{[%clk 00:12:06]} {[%emt 00:00:41]} 28. Nxg3 {[%clk 00:04:19]} {[%emt
00:00:25]} 1-0

[Event "Polofinale MCR juniorek 2023"]
[Site "Czech Republic"]
[Date "2023.11.14"]
[Round "4.1"]
[White "Sulcova, Tereza Radmila"]
[Black "Stastna, Martina"]
[Result "1/2-1/2"]
[TimeControl "90 min per 40 moves + 15 min + 30 sec / move from move 1"]
[WhiteFideId "395196"]
[BlackFideId "385123"]
[WhiteElo "1671"]
[BlackElo "1940"]

1. e4 {[%clk 01:30:55]} {[%emt 00:00:04]} e5 {[%clk 01:30:49]} {[%emt
00:00:11]} 2. Nf3 {[%clk 01:31:19]} {[%emt 00:00:06]} Nf6 {[%clk 01:31:00]}
{[%emt 00:00:20]} 3. Nxe5 {[%clk 01:31:26]} {[%emt 00:00:23]} d6 {[%clk
01:31:19]} {[%emt 00:00:10]} 4. Nf3 {[%clk 01:31:49]} {[%emt 00:00:08]} Nxe4
{[%clk 01:31:26]} {[%emt 00:00:23]} 5. Nc3 {[%clk 01:31:49]} {[%emt 00:00:30]}
Nxc3 {[%clk 01:30:55]} {[%emt 00:01:01]} 6. dxc3 {[%clk 01:31:24]} {[%emt
00:00:55]} Bg4 {[%clk 01:29:55]} {[%emt 00:01:30]} 7. Be2 {[%clk 01:25:05]}
{[%emt 00:06:48]} Nc6 {[%clk 01:25:27]} {[%emt 00:04:58]} 8. Be3 {[%clk
01:20:12]} {[%emt 00:05:23]} Be7 {[%clk 01:23:50]} {[%emt 00:02:07]} 9. Qd2
{[%clk 01:12:52]} {[%emt 00:07:50]} Qd7 {[%clk 01:17:47]} {[%emt 00:06:33]} 10.
O-O-O {[%clk 01:04:21]} {[%emt 00:09:00]} Be6 {[%clk 01:03:08]} {[%emt
00:15:11]} 11. a3 {[%clk 00:57:23]} {[%emt 00:07:29]} Bf6 {[%clk 00:49:32]}
{[%emt 00:14:05]} 12. Bd4 {[%clk 00:54:05]} {[%emt 00:03:48]} Bxd4 {[%clk
00:45:47]} {[%emt 00:04:15]} 13. Nxd4 {[%clk 00:53:01]} {[%emt 00:01:35]}
1/2-1/2

[Event "Polofinale MCR juniorek 2023"]
[Site "Czech Republic"]
[Date "2023.11.14"]
[Round "4.2"]
[White "Dudova, Pavlina"]
[Black "Buchtova, Viktorie"]
[Result "0-1"]
[TimeControl "90 min per 40 moves + 15 min + 30 sec / move from move 1"]
[WhiteFideId "394629"]
[BlackFideId "23714786"]
[WhiteElo "1763"]
[BlackElo "1801"]

1. e4 {[%clk 01:30:52]} {[%emt 00:00:06]} c5 {[%clk 01:30:28]} {[%emt
00:00:33]} 2. Nf3 {[%clk 01:31:14]} {[%emt 00:00:07]} Nc6 {[%clk 01:30:52]}
{[%emt 00:00:07]} 3. d4 {[%clk 01:31:37]} {[%emt 00:00:07]} cxd4 {[%clk
01:31:19]} {[%emt 00:00:04]} 4. Nxd4 {[%clk 01:31:59]} {[%emt 00:00:08]} g6
{[%clk 01:31:20]} {[%emt 00:00:29]} 5. Nc3 {[%clk 01:31:10]} {[%emt 00:01:18]}
Bg7 {[%clk 01:31:45]} {[%emt 00:00:06]} 6. Be3 {[%clk 01:31:17]} {[%emt
00:00:23]} Nf6 {[%clk 01:31:03]} {[%emt 00:01:12]} 7. Be2 {[%clk 01:31:00]}
{[%emt 00:00:46]} O-O {[%clk 01:31:02]} {[%emt 00:00:32]} 8. Nb3 {[%clk
01:30:28]} {[%emt 00:01:02]} b6 {[%clk 01:29:00]} {[%emt 00:02:32]} 9. O-O
{[%clk 01:30:17]} {[%emt 00:00:42]} Bb7 {[%clk 01:27:24]} {[%emt 00:02:06]} 10.
f4 {[%clk 01:29:04]} {[%emt 00:01:42]} d6 {[%clk 01:27:15]} {[%emt 00:00:40]}
11. Bf3 {[%clk 01:27:29]} {[%emt 00:02:04]} Nd7 {[%clk 01:18:40]} {[%emt
00:09:06]} 12. Nd4 {[%clk 01:19:24]} {[%emt 00:08:34]} Rc8 {[%clk 01:09:30]}
{[%emt 00:09:42]} 13. Rf2 {[%clk 01:13:46]} {[%emt 00:06:06]} Na5 {[%clk
01:08:36]} {[%emt 00:01:25]} 14. Nd5 {[%clk 00:36:57]} {[%emt 00:37:18]} Nf6
{[%clk 00:59:50]} {[%emt 00:09:16]} 15. b3 {[%clk 00:31:59]} {[%emt 00:05:28]}
Nxd5 {[%clk 00:53:12]} {[%emt 00:07:09]} 16. exd5 {[%clk 00:32:20]} {[%emt
00:00:09]} Rc3 {[%clk 00:46:40]} {[%emt 00:07:02]} 17. Qd2 {[%clk 00:31:51]}
{[%emt 00:00:53]} Qc8 {[%clk 00:45:12]} {[%emt 00:02:05]} 18. Re1 {[%clk
00:28:11]} {[%emt 00:04:09]} Qc5 {[%clk 00:43:44]} {[%emt 00:01:58]} 19. Nf5
{[%clk 00:27:54]} {[%emt 00:00:45]} Rxe3 {[%clk 00:43:38]} {[%emt 00:00:39]} 20.
Nxe3 {[%clk 00:25:46]} {[%emt 00:02:38]} Bc3 {[%clk 00:43:49]} {[%emt
00:00:19]} 21. Qe2 {[%clk 00:25:47]} {[%emt 00:00:24]} Ba6 {[%clk 00:39:31]}
{[%emt 00:04:53]} 22. Qd1 {[%clk 00:22:42]} {[%emt 00:03:34]} Qb4 {[%clk
00:30:33]} {[%emt 00:09:30]} 23. Ree2 {[%clk 00:17:54]} {[%emt 00:05:17]} Bxe2
{[%clk 00:27:45]} {[%emt 00:03:18]} 24. Bxe2 {[%clk 00:17:49]} {[%emt
00:00:35]} Bd4 {[%clk 00:24:09]} {[%emt 00:04:06]} 25. Rf3 {[%clk 00:16:51]}
{[%emt 00:01:27]} Qc5 {[%clk 00:23:18]} {[%emt 00:01:23]} 26. Qd3 {[%clk
00:15:25]} {[%emt 00:01:56]} Qxd5 {[%clk 00:22:13]} {[%emt 00:01:36]} 27. c3
{[%clk 00:13:55]} {[%emt 00:01:59]} Bxe3+ {[%clk 00:22:04]} {[%emt 00:00:39]}
28. Rxe3 {[%clk 00:13:40]} {[%emt 00:00:44]} Qxd3 {[%clk 00:22:15]} {[%emt
00:00:19]} 29. Bxd3 {[%clk 00:13:57]} {[%emt 00:00:13]} e6 {[%clk 00:16:17]}
{[%emt 00:06:28]} 30. c4 {[%clk 00:13:36]} {[%emt 00:00:51]} Rc8 {[%clk
00:14:20]} {[%emt 00:02:27]} 31. Be4 {[%clk 00:13:41]} {[%emt 00:00:23]} Nc6
{[%clk 00:12:29]} {[%emt 00:02:24]} 32. Rd3 {[%clk 00:13:53]} {[%emt 00:00:17]}
Nb4 {[%clk 00:10:48]} {[%emt 00:02:12]} 33. Rxd6 {[%clk 00:14:02]} {[%emt
00:00:21]} Nxa2 {[%clk 00:10:57]} {[%emt 00:00:21]} 34. Rd7 {[%clk 00:14:24]}
{[%emt 00:00:06]} Nc1 {[%clk 00:10:30]} {[%emt 00:00:59]} 35. Rxa7 {[%clk
00:13:17]} {[%emt 00:01:38]} Nxb3 {[%clk 00:10:58]} {[%emt 00:00:02]} 36. Bd3
{[%clk 00:12:59]} {[%emt 00:00:48]} Na5 {[%clk 00:10:39]} {[%emt 00:00:50]} 37.
Ra6 {[%clk 00:11:29]} {[%emt 00:02:00]} Nxc4 {[%clk 00:10:51]} {[%emt
00:00:18]} 38. g3 {[%clk 00:10:48]} {[%emt 00:01:11]} b5 {[%clk 00:09:55]}
{[%emt 00:01:26]} 39. Ra1 {[%clk 00:11:03]} {[%emt 00:00:13]} Rd8 {[%clk
00:05:12]} {[%emt 00:05:15]} 40. Be2 {[%clk 00:11:07]} {[%emt 00:00:25]} Kg7
{[%clk 00:00:56]} {[%emt 00:04:46]} 41. Rb1 {[%clk 00:11:17]} {[%emt 00:00:19]}
Rd5 {[%clk 00:00:33]} {[%emt 00:00:55]} 42. Rb4 {[%clk 00:11:18]} {[%emt
00:00:28]} Rc5 {[%clk 00:13:51]} {[%emt 00:02:43]} 43. Kf2 {[%clk 00:27:31]}
{[%emt 00:00:16]} Kf6 {[%clk 00:13:04]} {[%emt 00:01:17]} 44. Kf3 {[%clk
00:27:28]} {[%emt 00:00:32]} Na3 {[%clk 00:11:33]} {[%emt 00:02:03]} 45. Rb3
{[%clk 00:27:35]} {[%emt 00:00:22]} Nc2 {[%clk 00:11:49]} {[%emt 00:00:14]} 46.
Ke4 {[%clk 00:27:23]} {[%emt 00:00:38]} b4 {[%clk 00:10:07]} {[%emt 00:02:16]}
47. Bd3 {[%clk 00:27:37]} {[%emt 00:00:15]} Ne1 {[%clk 00:07:00]} {[%emt
00:03:39]} 48. Rxb4 {[%clk 00:27:38]} {[%emt 00:00:29]} Nxd3 {[%clk 00:06:06]}
{[%emt 00:01:24]} 49. Kxd3 {[%clk 00:28:02]} {[%emt 00:00:06]} Ra5 {[%clk
00:06:09]} {[%emt 00:00:26]} 50. Rb2 {[%clk 00:28:14]} {[%emt 00:00:18]} h5
{[%clk 00:05:28]} {[%emt 00:01:11]} 51. Ke3 {[%clk 00:28:13]} {[%emt 00:00:31]}
Kf5 {[%clk 00:05:48]} {[%emt 00:00:11]} 52. h3 {[%clk 00:28:13]} {[%emt
00:00:30]} Ra3+ {[%clk 00:05:59]} {[%emt 00:00:20]} 53. Kf2 {[%clk 00:28:36]}
{[%emt 00:00:06]} h4 {[%clk 00:06:15]} {[%emt 00:00:14]} 54. Rb5+ {[%clk
00:28:22]} {[%emt 00:00:45]} Kf6 {[%clk 00:06:24]} {[%emt 00:00:21]} 55. gxh4
{[%clk 00:26:06]} {[%emt 00:02:47]} Rxh3 {[%clk 00:06:49]} {[%emt 00:00:05]}
0-1